bitfinex/quotes_BTCUSD_20241120
["timestamp","ask_amount","ask_price","bid_price","bid_amount"]
[1732093048162,0.10906255,93268.0,93254.0,0.107234]
[1732093048366,0.10906255,93268.0,93254.0,0.1]
[1732093048588,0.10906255,93268.0,93255.0,0.00505486]
[1732093050741,0.22629355,93256.0,93255.0,0.00505486]
[1732093050943,0.01,93242.0,93227.0,0.107264]
[1732093051148,0.10906255,93241.0,93227.0,0.107264]
[1732093051586,0.10906255,93241.0,93226.0,0.107265]
[1732093051800,0.10906255,93241.0,93228.0,0.107263]
[1732093052658,0.10906255,93241.0,93226.0,0.107265]
[1732093052860,0.10906255,93241.0,93217.0,0.0912]
[1732093053064,0.01,93238.0,93217.0,0.01]
[1732093053285,0.107268,93225.0,93206.0,0.0812]
[1732093053533,0.10906255,93237.0,93213.0,0.10728]
[1732093053786,0.76742514,93268.0,93206.0,0.0812]
[1732093053787,0.10906255,93224.0,93206.0,0.0812]
[1732093054036,0.214539,93223.0,93206.0,0.0812]
[1732093054268,0.10906255,93222.0,93206.0,0.0812]
[1732093054488,0.107276,93218.0,93206.0,0.0812]
[1732093054697,0.10906255,93217.0,93206.0,0.0812]
[1732093054906,0.10906255,93217.0,93199.0,0.107296]
[1732093055121,0.107283,93211.0,93198.0,0.107297]
[1732093055334,0.21456,93214.0,93199.0,0.12353597]
[1732093055541,0.107283,93212.0,93199.0,0.23083197]
[1732093055746,0.10906255,93217.0,93199.0,0.23083197]
[1732093055950,0.107279,93215.0,93202.0,0.107292]
[1732093056590,0.107279,93215.0,93203.0,0.1]
[1732093057112,0.10728,93214.0,93203.0,0.1]
[1732093057537,0.10728,93214.0,93203.0,0.207292]
[1732093058170,0.10906255,93217.0,93200.0,0.207295]
[1732093058374,0.10906255,93217.0,93195.0,0.0812]
[1732093058375,0.107285,93209.0,93195.0,0.0812]
[1732093058605,0.21634755,93209.0,93189.0,0.0017102]
[1732093059543,0.21634755,93209.0,93189.0,0.1090182]
[1732093059744,0.21634755,93209.0,93189.0,0.0017102]
[1732093060387,0.21634755,93209.0,93190.0,0.1]
[1732093060965,0.22634755,93209.0,93189.0,0.0017102]
[1732093061803,0.36004755,93209.0,93189.0,0.0017102]
[1732093062651,0.35994518,93209.0,93189.0,0.0017102]
[1732093064337,0.42588275,93209.0,93189.0,0.0017102]
[1732093066276,0.40288275,93209.0,93189.0,0.0017102]
[1732093066804,0.32548275,93209.0,93189.0,0.0017102]
[1732093069310,0.4345453,93209.0,93189.0,0.0017102]
[1732093069530,0.46048275,93209.0,93189.0,0.0017102]
[1732093069744,0.53788275,93209.0,93189.0,0.0017102]
[1732093070905,0.56410971,93209.0,93189.0,0.0017102]
[1732093071335,0.56410971,93209.0,93208.0,4.8e-07]
[1732093071735,0.5632628,93209.0,93208.0,4.8e-07]
[1732093071974,0.5632628,93209.0,93189.0,0.0017102]
[1732093071975,0.127307,93190.0,93189.0,0.0017102]
[1732093072146,0.53283248,93190.0,93189.0,0.0017102]
[1732093072604,0.64283248,93190.0,93189.0,0.0017102]
[1732093073040,0.107349,93154.0,93147.0,0.0002551]
[1732093073243,0.107347,93156.0,93147.0,0.0002551]
[1732093073465,0.214682,93161.0,93147.0,0.0002551]
[1732093073466,0.10906255,93161.0,93147.0,0.0002551]
[1732093073666,0.10735,93153.0,93147.0,0.0002551]
[1732093073896,0.214686,93159.0,93147.0,0.0002551]
[1732093074106,0.32375155,93158.0,93147.0,0.0002551]
[1732093074308,0.10906255,93158.0,93147.0,0.0002551]
[1732093074526,0.214693,93156.0,93147.0,0.0002551]
[1732093074681,0.107354,93150.0,93147.0,0.0002551]
[1732093074886,0.214698,93154.0,93147.0,0.0002551]
[1732093075091,0.107352,93152.0,93147.0,0.0002551]
[1732093075297,0.10906255,93152.0,93147.0,0.0002551]
[1732093075674,0.21641355,93152.0,93147.0,0.0002551]
[1732093075863,0.10906255,93152.0,93147.0,0.0002551]
[1732093076100,0.21641355,93152.0,93147.0,0.0002551]
[1732093076312,0.10906255,93152.0,93147.0,0.0002551]
[1732093076827,0.01,93160.0,93147.0,0.0002551]
[1732093077053,0.10906255,93159.0,93147.0,0.0002551]
[1732093077255,0.214689,93158.0,93147.0,0.0002551]
[1732093077474,0.01,93160.0,93147.0,0.0002551]
[1732093077475,0.10906255,93157.0,93147.0,0.0002551]
[1732093077623,0.107353,93151.0,93147.0,0.0002551]
[1732093077864,0.10906255,93151.0,93147.0,0.0002551]
[1732093078274,0.25802424,93164.0,93147.0,0.0002551]
[1732093078275,0.10906255,93150.0,93147.0,0.0002551]
[1732093078497,0.21641555,93150.0,93147.0,0.0002551]
[1732093078911,0.107355,93149.0,93147.0,0.0002551]
[1732093079110,0.10906255,93148.0,93147.0,0.0002551]
[1732093080445,0.21641855,93148.0,93147.0,0.0002551]
[1732093083196,0.35011855,93148.0,93147.0,0.0002551]
[1732093083386,0.28341855,93148.0,93147.0,0.0002551]
[1732093084938,0.32741073,93148.0,93147.0,0.0002551]
[1732093087186,0.43741073,93148.0,93147.0,0.0002551]
[1732093088277,0.43912393,93148.0,93147.0,0.0002551]
[1732093089658,0.11077575,93148.0,93147.0,0.0002551]
[1732093090567,0.11077575,93148.0,93141.0,0.1807]
[1732093090568,0.0017132,93148.0,93146.0,0.0876131]
[1732093090791,0.0017132,93148.0,93147.0,0.107357]
[1732093091258,0.0017132,93148.0,93146.0,0.0876131]
[1732093091465,0.0017132,93148.0,93147.0,0.107357]
[1732093098536,0.0017132,93148.0,93147.0,0.207357]
[1732093098772,0.0017132,93148.0,93147.0,0.283557]
[1732093099266,0.0017132,93148.0,93147.0,0.42561955]
[1732093099926,0.0890232,93188.0,93155.0,0.01]
[1732093100165,0.21461,93193.0,93160.0,0.12353597]
[1732093100166,0.107313,93185.0,93160.0,0.12353597]
[1732093100425,0.10906255,93184.0,93173.0,0.214652]
[1732093100641,0.108998,93209.0,93201.0,0.01]
[1732093100875,0.108998,93209.0,93200.0,0.1]
[1732093100876,0.10906255,93206.0,93200.0,0.1]
[1732093101093,0.10906255,93206.0,93201.0,0.01]
[1732093101311,0.10906255,93206.0,93202.0,0.1]
[1732093102275,0.10906255,93206.0,93179.0,0.0762]
[1732093102511,0.001712,93209.0,93173.0,0.1]
[1732093102512,0.01,93197.0,93173.0,0.1]
[1732093102772,0.107315,93184.0,93171.0,0.107328]
[1732093103000,0.01,93193.0,93171.0,0.107328]
[1732093103001,0.10906255,93183.0,93171.0,0.107328]
[1732093103226,0.10906255,93183.0,93167.0,0.0762]
[1732093103456,0.10906255,93183.0,93171.0,0.107329]
[1732093103457,0.21637755,93183.0,93171.0,0.107329]
[1732093103682,0.21637755,93183.0,93169.0,0.107331]
[1732093103913,0.10906255,93183.0,93169.0,0.107331]
[1732093104151,0.10906255,93183.0,93163.0,0.1]
[1732093104378,0.10906255,93183.0,93157.0,0.0762]
[1732093104379,0.10906255,93183.0,93165.0,0.1]
[1732093104610,0.107321,93178.0,93166.0,0.107334]
[1732093104837,0.10906255,93177.0,93166.0,0.107334]
[1732093105062,0.21638455,93177.0,93166.0,0.107334]
[1732093105286,0.10906255,93177.0,93165.0,0.1]
[1732093105524,0.21638455,93177.0,93165.0,0.207335]
[1732093105766,0.10906255,93177.0,93160.0,0.1]
[1732093105991,0.107325,93175.0,93163.0,0.107338]
[1732093106217,0.10906255,93174.0,93164.0,0.107336]
[1732093106640,0.10906255,93174.0,93160.0,0.1]
[1732093106641,0.107327,93173.0,93162.0,0.107339]
[1732093106897,0.10906255,93173.0,93164.0,0.107337]
[1732093107143,0.21466,93171.0,93155.0,0.1]
[1732093107371,0.214661,93170.0,93158.0,0.1]
[1732093107581,0.107333,93168.0,93157.0,0.107344]
[1732093107849,0.10733,93170.0,93160.0,0.107342]
[1732093108086,0.10906255,93170.0,93158.0,0.107343]
[1732093108326,0.214665,93168.0,93156.0,0.1]
[1732093108551,0.10906255,93167.0,93156.0,0.1]
[1732093108768,0.10906255,93167.0,93157.0,0.107345]
[1732093108982,0.10906255,93167.0,93156.0,0.1]
[1732093109243,0.107335,93166.0,93156.0,0.207345]
[1732093109474,0.21639855,93165.0,93156.0,0.1]
[1732093110362,0.21639855,93165.0,93146.0,0.0008566]
[1732093110363,0.10906255,93165.0,93146.0,0.0008566]
[1732093110603,0.10906255,93165.0,93154.0,0.107348]
[1732093110604,0.107338,93164.0,93154.0,0.107348]
[1732093110815,0.12353597,93182.0,93146.0,0.0008566]
[1732093110816,0.10906255,93163.0,93162.0,0.107339]
[1732093111081,0.01,93187.0,93163.0,0.107337]
[1732093111301,0.01,93187.0,93158.0,0.107344]
[1732093111302,0.10906255,93178.0,93158.0,0.107344]
[1732093111524,0.107328,93172.0,93162.0,0.107339]
[1732093111736,0.10906255,93171.0,93164.0,0.207336]
[1732093111945,0.10906255,93171.0,93163.0,0.1]
[1732093112367,0.10906255,93171.0,93163.0,0.207337]
[1732093112805,0.10906255,93171.0,93163.0,0.1]
[1732093113038,0.10906255,93171.0,93146.0,0.0008566]
[1732093113039,0.1244,93170.0,93146.0,0.0008566]
[1732093113255,0.107341,93161.0,93146.0,0.0008566]
[1732093113471,0.10906255,93160.0,93146.0,0.0008566]
[1732093113680,0.21640455,93160.0,93150.0,0.107353]
[1732093113888,0.21640455,93160.0,93151.0,0.107352]
[1732093114110,0.10906255,93160.0,93151.0,0.107352]
[1732093114800,0.10906255,93160.0,93148.0,0.107355]
[1732093115016,0.10906255,93160.0,93151.0,0.107351]
[1732093115226,0.10906255,93160.0,93146.0,0.0008566]
[1732093115452,0.10906255,93160.0,93151.0,0.214704]
[1732093115656,0.10906255,93160.0,93151.0,0.214703]
[1732093115865,0.10906255,93160.0,93151.0,0.214702]
[1732093116076,0.10906255,93160.0,93152.0,0.107351]
[1732093116517,0.10906255,93160.0,93154.0,0.107348]
[1732093116715,0.10906255,93160.0,93152.0,0.107351]
[1732093117648,0.10906255,93160.0,93154.0,0.107349]
[1732093117874,0.10906255,93160.0,93152.0,0.107351]
[1732093118956,0.10906255,93160.0,93153.0,0.107349]
[1732093119380,0.10906255,93160.0,93156.0,0.107345]
[1732093119586,0.10906255,93160.0,93159.0,0.107343]
[1732093119814,0.10906255,93160.0,93146.0,0.0008566]
[1732093120254,0.10906255,93160.0,93155.0,0.107347]
[1732093120459,0.10906255,93160.0,93157.0,0.107345]
[1732093120669,0.10906255,93160.0,93155.0,0.107347]
[1732093121308,0.10906255,93160.0,93152.0,0.10735]
[1732093121521,0.10906255,93160.0,93155.0,0.107347]
[1732093121739,0.10906255,93160.0,93156.0,0.107346]
[1732093121995,0.10906255,93160.0,93155.0,0.107347]
[1732093122656,0.0017108,93171.0,93163.0,0.107338]
[1732093122876,0.10906255,93170.0,93163.0,0.107338]
[1732093123103,0.10906255,93170.0,93155.0,0.0823]
[1732093123312,0.21639355,93170.0,93161.0,0.10734]
[1732093123740,0.10906255,93170.0,93161.0,0.10734]
[1732093123958,0.0017108,93171.0,93157.0,0.12353597]
[1732093124172,0.0017108,93171.0,93165.0,0.107335]
[1732093124624,0.11077335,93171.0,93155.0,0.0823]
[1732093124875,0.11077335,93171.0,93158.0,0.107343]
[1732093124876,0.107332,93169.0,93158.0,0.107343]
[1732093125100,0.10906255,93168.0,93158.0,0.107343]
[1732093125540,0.21639555,93168.0,93158.0,0.107343]
[1732093125974,0.21639555,93168.0,93151.0,0.107352]
[1732093125975,0.10906255,93168.0,93151.0,0.117352]
[1732093126185,0.32372955,93168.0,93157.0,0.1]
[1732093126416,0.10906255,93168.0,93149.0,0.1]
[1732093126623,0.107339,93163.0,93152.0,0.107351]
[1732093126849,0.214671,93166.0,93159.0,0.0008551]
[1732093126850,0.10906255,93162.0,93159.0,0.0008551]
[1732093127300,0.107342,93160.0,93159.0,0.0008551]
[1732093127507,0.10906255,93160.0,93159.0,0.0008551]
[1732093129523,0.21640455,93160.0,93159.0,0.0008551]
[1732093131506,0.26250455,93160.0,93159.0,0.0008551]
[1732093131728,0.27250455,93160.0,93159.0,0.0008551]
[1732093134375,0.26250455,93160.0,93159.0,0.0008551]
[1732093138701,0.27250455,93160.0,93159.0,0.0008551]
[1732093139145,0.46640455,93160.0,93159.0,0.0008551]
[1732093139374,0.48120455,93160.0,93159.0,0.0008551]
[1732093139637,0.52545929,93160.0,93159.0,0.0008551]
[1732093141679,1.56648443,93160.0,93159.0,0.0008551]
[1732093142533,1.53348443,93160.0,93159.0,0.0008551]
[1732093142741,1.54348443,93160.0,93159.0,0.0008551]
[1732093144804,1.53348443,93160.0,93159.0,0.0008551]
[1732093145026,1.34778443,93160.0,93159.0,0.0008551]
[1732093145255,0.26065929,93160.0,93159.0,0.0008551]
[1732093146183,0.10906255,93160.0,93159.0,0.0008551]
[1732093148919,0.10906255,93160.0,93152.0,0.107351]
[1732093149140,0.50502514,93169.0,93146.0,0.09563636]
[1732093149141,0.10906255,93159.0,93154.0,0.107348]
[1732093149362,0.10906255,93159.0,93146.0,0.0008566]
[1732093149363,0.10906255,93159.0,93152.0,0.107351]
[1732093149605,0.10906255,93159.0,93151.0,0.107351]
[1732093149825,0.21495678,93159.0,93151.0,0.107351]
[1732093150542,0.21495678,93159.0,93151.0,0.214702]
[1732093150776,0.21495678,93159.0,93146.0,0.0008566]
[1732093151230,0.21495678,93159.0,93148.0,0.107356]
[1732093151464,0.21495678,93159.0,93151.0,0.107351]
[1732093151693,0.21495678,93159.0,93151.0,0.0008551]
[1732093151924,0.107346,93157.0,93151.0,0.0008551]
[1732093152149,0.10906255,93156.0,93146.0,0.107357]
[1732093152382,0.10906255,93156.0,93141.0,0.14347736]
[1732093152647,0.10906255,93156.0,93140.0,0.04483301]
[1732093152871,0.107347,93155.0,93142.0,0.107361]
[1732093153098,0.107347,93155.0,93140.0,0.04483301]
[1732093153099,0.10906255,93154.0,93140.0,0.0008554]
[1732093153327,0.322052,93153.0,93140.0,0.1082194]
[1732093153552,0.10906255,93152.0,93140.0,0.0008554]
[1732093153779,0.10906255,93152.0,93141.0,0.107364]
[1732093154009,0.10906255,93152.0,93142.0,0.107362]
[1732093154230,0.10906255,93152.0,93141.0,0.107364]
[1732093154231,0.107352,93151.0,93141.0,0.107364]
[1732093154456,0.21641455,93151.0,93141.0,0.214727]
[1732093154684,0.10906255,93151.0,93140.0,0.0008554]
[1732093154915,0.21641555,93151.0,93142.0,0.107362]
[1732093155396,0.21641555,93151.0,93141.0,0.107363]
[1732093155632,0.10906255,93150.0,93142.0,0.107362]
[1732093155862,0.10906255,93150.0,93140.0,0.0008554]
[1732093156076,0.10589423,93159.0,93140.0,0.0008554]
[1732093156295,0.107345,93157.0,93147.0,0.118092]
[1732093156517,0.10906255,93156.0,93144.0,0.118095]
[1732093156724,0.107351,93153.0,93142.0,0.214722]
[1732093156932,0.107351,93153.0,93143.0,0.107361]
[1732093156933,0.10906255,93152.0,93143.0,0.107361]
[1732093157379,0.21641355,93152.0,93141.0,0.107363]
[1732093157829,0.21641355,93152.0,93142.0,0.107362]
[1732093158268,0.10906255,93152.0,93142.0,0.107362]
[1732093158511,0.10906255,93152.0,93140.0,0.0008554]
[1732093158725,0.107364,93141.0,93140.0,0.0008554]
[1732093158997,0.21642655,93141.0,93140.0,0.0008554]
[1732093159221,0.10906255,93141.0,93140.0,0.0008554]
[1732093159659,0.21642655,93141.0,93140.0,0.0008554]
[1732093161862,0.214707,93150.0,93140.0,0.0008554]
[1732093162116,0.10906255,93149.0,93140.0,0.0008554]
[1732093162344,0.107356,93148.0,93140.0,0.0008554]
[1732093162573,0.10906255,93147.0,93140.0,0.0008554]
[1732093163004,0.046,93169.0,93140.0,0.0008554]
[1732093163234,0.0017108,93152.0,93149.0,0.107354]
[1732093164128,0.0017108,93152.0,93151.0,0.107352]
[1732093164350,0.0017108,93152.0,93151.0,0.186852]
[1732093164563,0.0017108,93152.0,93151.0,0.33042441]
[1732093164814,0.0017108,93152.0,93151.0,0.186852]
[1732093165255,0.0017108,93152.0,93151.0,0.33042441]
[1732093165546,0.0017108,93152.0,93151.0,0.186852]
[1732093166226,0.0017108,93152.0,93151.0,0.46342441]
[1732093166468,0.0017108,93152.0,93151.0,0.319852]
[1732093166929,0.0017108,93152.0,93151.0,0.55913935]
[1732093167397,0.0017108,93152.0,93151.0,0.60187146]
[1732093167625,0.0017108,93152.0,93151.0,0.36258411]
[1732093168792,0.0017108,93152.0,93151.0,0.32958411]
[1732093171788,0.0017108,93152.0,93151.0,1.03158411]
[1732093172005,0.0017108,93152.0,93151.0,1.11618411]
[1732093173301,0.0017108,93152.0,93151.0,1.4032453]
[1732093173517,0.0017108,93152.0,93151.0,1.11618411]
[1732093174174,0.0017108,93152.0,93151.0,1.35878263]
[1732093174391,0.10589423,93159.0,93158.0,0.45607997]
[1732093174604,0.214579,93206.0,93158.0,0.45607997]
[1732093174605,0.092413,93203.0,93187.0,0.12353597]
[1732093174824,0.10906255,93195.0,93191.0,0.107305]
[1732093175047,0.10906255,93195.0,93187.0,0.12353597]
[1732093175284,0.10906255,93195.0,93188.0,0.107309]
[1732093175503,0.10906255,93195.0,93188.0,0.107308]
[1732093175741,0.429156,93206.0,93180.0,0.118051]
[1732093175985,0.107297,93199.0,93188.0,0.107309]
[1732093176213,0.107294,93202.0,93189.0,0.0822]
[1732093176463,0.107294,93202.0,93177.0,0.09551773]
[1732093176464,0.10906255,93201.0,93180.0,0.1822]
[1732093176686,0.1073,93196.0,93181.0,0.118049]
[1732093176914,0.107301,93196.0,93184.0,0.107314]
[1732093177140,0.321909,93194.0,93180.0,0.189518]
[1732093177357,0.321909,93194.0,93181.0,0.207317]
[1732093177358,0.107305,93192.0,93181.0,0.207317]
[1732093177572,0.10906255,93193.0,93181.0,0.1]
[1732093177969,0.107307,93191.0,93181.0,0.1]
[1732093178211,0.21636655,93193.0,93180.0,0.107318]
[1732093178429,0.21636655,93193.0,93183.0,0.107315]
[1732093178732,0.10906255,93193.0,93183.0,0.107315]
[1732093178940,0.10906255,93193.0,93184.0,0.107314]
[1732093180093,0.10906255,93193.0,93186.0,0.107311]
[1732093180329,0.10906255,93193.0,93184.0,0.107314]
[1732093180330,0.10906255,93193.0,93183.0,0.107315]
[1732093180537,0.10906255,93193.0,93185.0,0.107312]
[1732093180799,0.10906255,93193.0,93183.0,0.107315]
[1732093181227,0.10906255,93193.0,93171.0,0.23353597]
[1732093181228,0.10906255,93193.0,93184.0,0.118046]
[1732093181683,0.214578,93207.0,93178.0,0.12353597]
[1732093181893,0.107297,93200.0,93181.0,0.00214618]
[1732093182113,0.10906255,93199.0,93189.0,0.107307]
[1732093182547,0.214596,93198.0,93182.0,0.118048]
[1732093182772,0.214599,93197.0,93181.0,0.107317]
[1732093182975,0.107303,93194.0,93183.0,0.107315]
[1732093183190,0.214601,93196.0,93183.0,0.107315]
[1732093183405,0.10906255,93198.0,93183.0,0.107315]
[1732093183626,0.21636155,93198.0,93184.0,0.118046]
[1732093183846,0.10906255,93198.0,93186.0,0.107311]
[1732093184050,0.21636155,93198.0,93186.0,0.107311]
[1732093184263,0.107299,93197.0,93186.0,0.107311]
[1732093184489,0.10906255,93198.0,93187.0,0.10731]
[1732093184697,0.10906255,93198.0,93186.0,0.107311]
[1732093184698,0.10906255,93198.0,93188.0,0.107309]
[1732093185118,0.10906255,93198.0,93187.0,0.10731]
[1732093185330,0.10906255,93198.0,93188.0,0.107309]
[1732093185560,0.10906255,93197.0,93178.0,0.1]
[1732093185779,0.10906255,93197.0,93173.0,0.1]
[1732093185991,0.214601,93196.0,93173.0,0.1]
[1732093186209,0.107306,93192.0,93173.0,0.1]
[1732093186430,0.107306,93192.0,93169.0,0.01]
[1732093186431,0.107305,93192.0,93169.0,0.107331]
[1732093186637,0.21462,93188.0,93173.0,0.04417429]
[1732093186867,0.107309,93189.0,93168.0,0.107332]
[1732093187094,0.107309,93189.0,93167.0,0.166933]
[1732093187095,0.107311,93187.0,93167.0,0.166933]
[1732093187302,0.32367455,93191.0,93168.0,0.107332]
[1732093187530,0.107312,93186.0,93168.0,0.107332]
[1732093187747,0.10731,93188.0,93168.0,0.214663]
[1732093188000,0.107308,93190.0,93171.0,0.107329]
[1732093188208,0.107308,93189.0,93171.0,0.107329]
[1732093188463,0.107308,93189.0,93173.0,0.03]
[1732093188898,0.10906255,93191.0,93173.0,0.03]
[1732093189315,0.214615,93190.0,93173.0,0.03]
[1732093189526,0.0017108,93198.0,93173.0,0.03]
[1732093189527,0.10906255,93189.0,93173.0,0.03]
[1732093189737,0.107324,93176.0,93173.0,0.03]
[1732093190151,0.107321,93179.0,93173.0,0.03]
[1732093190383,0.10906255,93187.0,93173.0,0.03]
[1732093190588,0.107326,93174.0,93173.0,0.03]
[1732093191027,0.10906255,93186.0,93161.0,0.04401741]
[1732093191230,0.10733,93171.0,93161.0,0.04401741]
[1732093191442,0.10733,93171.0,93157.0,0.0795]
[1732093191655,0.214654,93173.0,93157.0,0.186844]
[1732093191869,0.10733,93171.0,93157.0,0.1229994]
[1732093192080,0.214626,93185.0,93159.0,0.107343]
[1732093192285,0.107327,93173.0,93159.0,0.107343]
[1732093192866,0.107321,93179.0,93165.0,0.107335]
[1732093193086,0.107325,93175.0,93162.0,0.0021465]
[1732093193439,0.107329,93172.0,93162.0,0.0021465]
[1732093193653,0.107329,93172.0,93160.0,0.107342]
[1732093193860,0.10906255,93184.0,93159.0,0.107342]
[1732093194058,0.107328,93172.0,93160.0,0.107341]
[1732093194286,0.107331,93170.0,93159.0,0.107342]
[1732093194763,0.107331,93170.0,93159.0,0.211384]
[1732093194984,0.214654,93173.0,93160.0,0.107342]
[1732093195182,0.10733,93170.0,93160.0,0.107342]
[1732093195885,0.10733,93171.0,93161.0,0.107339]
[1732093196376,0.107332,93169.0,93160.0,0.107342]
[1732093196601,0.10906255,93184.0,93157.0,0.1229994]
[1732093196828,0.107318,93181.0,93158.0,0.00214666]
[1732093197052,0.107343,93159.0,93158.0,0.00214666]
[1732093197301,0.107341,93161.0,93152.0,0.207351]
[1732093197519,0.10906255,93180.0,93156.0,0.04263672]
[1732093197736,0.107342,93160.0,93157.0,0.00214666]
[1732093197938,0.107342,93160.0,93153.0,0.107349]
[1732093198150,0.107342,93160.0,93152.0,0.207351]
[1732093198335,0.21468,93162.0,93152.0,0.207351]
[1732093198336,0.10906255,93180.0,93152.0,0.14258447]
[1732093198583,0.107343,93159.0,93158.0,0.03]
[1732093198802,0.107343,93159.0,93152.0,0.14258447]
[1732093198803,0.107343,93159.0,93154.0,0.107349]
[1732093199013,0.107341,93161.0,93154.0,0.107349]
[1732093199243,0.107342,93160.0,93154.0,0.107349]
[1732093199469,0.214659,93171.0,93152.0,0.04258447]
[1732093199685,0.10906255,93180.0,93152.0,0.04258447]
[1732093199686,0.107342,93160.0,93153.0,0.10735]
[1732093199912,0.15251343,93180.0,93151.0,0.809351]
[1732093200120,0.107332,93169.0,93151.0,0.809351]
[1732093200328,0.10906255,93169.0,93153.0,0.10735]
[1732093200559,0.10906255,93169.0,93151.0,0.702]
[1732093200560,0.0466,93189.0,93164.0,0.107336]
[1732093200814,0.107328,93172.0,93166.0,0.107335]
[1732093201018,0.10906255,93179.0,93166.0,0.107335]
[1732093201019,0.214645,93177.0,93166.0,0.107335]
[1732093201262,0.10906255,93176.0,93166.0,0.107334]
[1732093201475,0.10906255,93176.0,93165.0,0.107335]
[1732093201708,0.10906255,93176.0,93161.0,0.0008552]
[1732093201937,0.107339,93162.0,93161.0,0.0008552]
[1732093202184,0.21640155,93162.0,93161.0,0.0008552]
[1732093203436,0.10906255,93162.0,93161.0,0.0008552]
[1732093203667,0.10906255,93162.0,93161.0,0.1081962]
[1732093203878,0.214656,93172.0,93161.0,0.0008552]
[1732093204143,0.21639155,93171.0,93165.0,0.107335]
[1732093204366,0.10906255,93171.0,93161.0,0.0008552]
[1732093204587,0.10906255,93171.0,93167.0,0.214666]
[1732093204822,0.10906255,93171.0,93165.0,0.107335]
[1732093205036,0.107331,93170.0,93165.0,0.107335]
[1732093205279,0.10906255,93169.0,93161.0,0.0108552]
[1732093205483,0.32372655,93169.0,93161.0,0.0108552]
[1732093205692,0.107334,93167.0,93162.0,0.107339]
[1732093205896,0.107334,93167.0,93161.0,0.0108552]
[1732093205897,0.10906255,93167.0,93163.0,0.107338]
[1732093206116,0.107335,93166.0,93161.0,0.1181952]
[1732093206348,0.107336,93165.0,93161.0,0.0108552]
[1732093206766,0.21639655,93167.0,93161.0,0.0108552]
[1732093206981,0.107339,93162.0,93161.0,0.0108552]
[1732093207219,0.21640155,93162.0,93161.0,0.0108552]
[1732093210550,0.214685,93160.0,93151.0,0.44975375]
[1732093210761,0.0812,93163.0,93151.0,0.44975375]
[1732093210762,0.10735,93154.0,93151.0,0.44975375]
[1732093210984,0.21641255,93153.0,93151.0,0.44975375]
[1732093211418,0.10906255,93153.0,93151.0,0.44975375]
[1732093211664,0.10906255,93153.0,93151.0,0.55710575]
[1732093212101,0.10906255,93153.0,93152.0,0.0008554]
[1732093212324,0.21641255,93153.0,93152.0,0.0008554]
[1732093213743,0.21641255,93153.0,93152.0,0.0108554]
[1732093216082,0.0467,93161.0,93152.0,0.0108554]
[1732093216083,0.214675,93164.0,93152.0,0.0108554]
[1732093216306,0.10906255,93162.0,93155.0,0.107347]
[1732093216525,0.107341,93161.0,93156.0,0.107346]
[1732093216780,0.21640455,93160.0,93155.0,0.107347]
[1732093217000,0.10906255,93160.0,93155.0,0.107347]
[1732093217222,0.10906255,93160.0,93152.0,0.0108554]
[1732093217455,0.10906255,93160.0,93155.0,0.107346]
[1732093217679,0.21640455,93160.0,93154.0,0.107348]
[1732093217908,0.107328,93173.0,93157.0,0.107345]
[1732093218160,0.11077335,93169.0,93168.0,0.107332]
[1732093218597,0.11077335,93169.0,93168.0,0.11219327]
[1732093219089,0.0017108,93169.0,93168.0,0.11219327]
[1732093221303,0.0017108,93169.0,93168.0,0.00486127]
[1732093221527,0.0017108,93169.0,93168.0,0.11219327]
[1732093221750,0.0017108,93169.0,93168.0,0.107332]
[1732093221992,0.0017108,93169.0,93168.0,0.11208047]
[1732093222433,0.0017108,93169.0,93168.0,0.12208047]
[1732093222672,0.11077335,93169.0,93168.0,0.01474847]
[1732093222898,0.10077335,93169.0,93168.0,0.01474847]
[1732093223392,0.20810435,93169.0,93168.0,0.01474847]
[1732093223611,0.20810435,93169.0,93168.0,0.01]
[1732093224064,0.20810435,93169.0,93168.0,0.01474847]
[1732093224786,0.20810435,93169.0,93168.0,0.01]
[1732093225472,0.20981515,93169.0,93168.0,0.01]
[1732093233544,0.31981515,93169.0,93168.0,0.01]
[1732093233765,0.32981515,93169.0,93168.0,0.01]
[1732093236935,0.45911515,93169.0,93168.0,0.01]
[1732093237155,0.45911515,93169.0,93168.0,0.0108552]
[1732093238792,0.45911515,93169.0,93168.0,0.0008552]
[1732093238793,0.48211515,93169.0,93168.0,0.0008552]
[1732093239254,0.57829936,93169.0,93168.0,0.0008552]
[1732093239487,0.48211515,93169.0,93168.0,0.0008552]
[1732093239711,0.48411515,93169.0,93168.0,0.0008552]
[1732093242927,0.5911777,93169.0,93168.0,0.0008552]
[1732093243169,0.48411515,93169.0,93168.0,0.0008552]
[1732093243390,0.46111515,93169.0,93168.0,0.0008552]
[1732093243615,0.45911515,93169.0,93168.0,0.0008552]
[1732093246283,0.46111515,93169.0,93168.0,0.0008552]
[1732093247170,0.46111515,93169.0,93168.0,0.0108552]
[1732093248299,1.87864029,93169.0,93168.0,0.0108552]
[1732093251120,1.87664029,93169.0,93168.0,0.0108552]
[1732093252881,1.87864029,93169.0,93168.0,0.0108552]
[1732093255282,0.73731515,93169.0,93168.0,0.0108552]
[1732093255506,0.46111515,93169.0,93168.0,0.0108552]
[1732093258370,0.46111515,93169.0,93168.0,2e-07]
[1732093258371,0.48211515,93169.0,93168.0,2e-07]
[1732093258581,0.5911777,93169.0,93168.0,2e-07]
[1732093258808,0.35088597,93153.0,93152.0,0.0008554]
[1732093259026,0.45994852,93153.0,93152.0,0.0008554]
[1732093259699,0.50984852,93153.0,93152.0,0.0008554]
[1732093259929,0.59154852,93153.0,93152.0,4e-07]
[1732093260112,0.59354852,93153.0,93152.0,4e-07]
[1732093260330,0.59154852,93153.0,93152.0,4e-07]
[1732093260524,0.59354852,93153.0,93152.0,4e-07]
[1732093261682,0.59154852,93153.0,93152.0,4e-07]
[1732093263158,0.50984852,93153.0,93152.0,4e-07]
[1732093264711,0.5536284,93153.0,93152.0,4e-07]
[1732093265823,0.5556284,93153.0,93152.0,4e-07]
[1732093266488,0.4937284,93153.0,93152.0,4e-07]
[1732093266701,0.37019243,93153.0,93152.0,4e-07]
[1732093266924,0.36019243,93153.0,93152.0,4e-07]
[1732093267142,0.37019243,93153.0,93152.0,4e-07]
[1732093268668,0.36919243,93153.0,93152.0,4e-07]
[1732093270483,0.35919243,93153.0,93152.0,4e-07]